Cogmind - Beta 16 --- EXPLORER MODE // 2025.12.22 @ 16:40:41 Player: K.K.Y. Result: Destroyed by Piercing Trap Performance ------------- Evolutions (0) 0 Regions Visited (3) 600 Robots Destroyed (30) 150 Value Destroyed (553) 553 Prototype IDs (7) 140 Alien Tech Used (0) 0 Bonus (100) 100 TOTAL SCORE: 1543 Bonus ------- Follower Combat Kills 100 Cogmind --------- Core Integrity 0/250 Matter 300/300 Energy 158/160 System Corruption 1% Temperature Cool (0) Movement Rolling (80) Location -10/Subcaves Parts ------- > --- POWER (1) -------- Light Nuclear Core > --- PROPULSION (2) --- Wheel Wheel > --- UTILITY (3) ------ Improved Heat Sink Sensor Array Core Shielding > --- WEAPON (2) ------- Particle Gun Particle Gun > --- INVENTORY (5) ---- High-capacity Storage Unit ECM Suite Makeshift System Restoration Module Mining Laser Plasma Cutter Peak State ------------ > --- POWER ------------ Light Nuclear Core > --- PROPULSION ------- Wheel Wheel > --- UTILITY ---------- Improved Heat Sink Sensor Array Core Shielding > --- WEAPON ----------- Particle Gun Particle Gun > --- INVENTORY -------- High-capacity Storage Unit ECM Suite Mining Laser Plasma Cutter [Rating: 14] Favorites ----------- Power Light Nuclear Core Engine Ion Engine Power Core Light Nuclear Core Propulsion Wheel Treads Light Treads Wheel Wheel Utility Core Shielding Device Improved Heat Sink Protection Core Shielding Weapon Light Assault Rifle Energy Gun Particle Gun Ballistic Gun Light Assault Rifle Special Weapon Mining Laser Build | -11 -10 -10 -10 ------- Run | Yrd Mat Min Sub Slots Evolved 1 | . 1 . . Power . | . . . . Propulsion . | . . . . Utility 1 | . 1 . . Weapon . | . . . . Parts Attached 21 | 2 9 6 4 Power 3 | . 2 1 . Engine 2 | . 2 . . Core 1 | . . 1 . Reactor . | . . . . Propulsion 4 | . 2 2 . Treads 2 | . 2 . . Leg . | . . . . Wheel 2 | . . 2 . Hover . | . . . . Flight . | . . . . Utility 7 | . 5 . 2 Device 2 | . . . 2 Storage . | . . . . Processor . | . . . . Hackware . | . . . . Protection 5 | . 5 . . Artifact . | . . . . Weapon 7 | 2 . 3 2 Energy Gun 4 | . . 3 1 Energy Cannon . | . . . . Ballistic Gun 2 | 2 . . . Ballistic Cannon . | . . . . Launcher . | . . . . Special Weapon 1 | . . . 1 Impact Weapon . | . . . . Slashing Weapon . | . . . . Piercing Weapon . | . . . . Special Melee Weapon . | . . . . Unidentified Prototypes . | . . . . Parts Lost 6 | . . 6 . Power 1 | . . 1 . Propulsion 2 | . . 2 . Utility 2 | . . 2 . Weapon 1 | . . 1 . Highest Loss Streak 5 | . . 5 . To Critical Strikes . | . . . . Average Backups 4 | 3 5 5 4 Power . | . . . . Propulsion . | 1 . . . Utility 2 | 1 2 3 2 Weapon . | . 1 1 1 Tool/Special . | . . . . Unused Backups 8 | 1 2 . 5 Power . | . . . . Propulsion . | . . . . Utility 5 | . 1 . 4 Weapon 2 | 1 1 . . Tool/Special 1 | . . . 1 Average Slot Usage (%) 85 | . 96 62 98 Engine 4 | . 10 . . Core 5 | . . 6 12 Treads 9 | . 24 1 . Wheel 12 | . . 17 25 Device 6 | . . . 23 Protection 22 | . 35 15 12 Energy Gun 6 | . . 8 12 Ballistic Gun 14 | . 25 12 . Special Weapon 2 | . . . 10 Peak Build Rating 14 | 2 11 10 14 Average Rating 9 | 1 9 6 13 On Entrance 5 | . 2 10 9 Avg Prop Armor Cover (%) . | . . . . Naked Turns . | . . . . Heaviest Build 28 | 2 28 22 14 Greatest Support 40 | 3 40 40 20 Greatest Overweight (x) 2 | . . 2 . Average Overweight (x) . | . . . . Largest Inventory Capacity 5 | 5 5 5 5 Average Capacity 5 | 5 5 5 5 Most Carried 5 | 5 5 5 5 Average Carried 4 | 3 4 5 4 Final Capacity 5 | 5 5 5 5 Final Carried 5 | 5 5 5 5 Class Distribution -------------------- 75% | Hacker-Mutant 24% | Scavenger-Mutant Dominant Class ---------------- Hacker-Mutant | -10/Materials Hacker-Mutant | -10/Mines Scavenger-Mutant | -10/Subcaves Resources | -11 -10 -10 -10 ----------- Run | Yrd Mat Min Sub Matter Collected 607 | 260 174 117 56 Remotely . | . . . . Salvage Created 912 | 146 415 248 103 Parts 57 | 6 33 8 10 Haulers Intercepted 1 | . 1 . . Recyclers Shooed 1 | . 1 . . Parts Field Recycled . | . . . . Retrieved Matter . | . . . . Parts Self-Destructed . | . . . . Prevented . | . . . . Parts Restored . | . . . . Kills | -11 -10 -10 -10 ------- Run | Yrd Mat Min Sub Combat Hostiles Destroyed 19 | . 8 8 3 Guns 19 | . 8 8 3 Classes Destroyed 10 | 2 6 1 1 Worker 2 | . 2 . . Tunneler 4 | 4 . . . Hauler 1 | . 1 . . Recycler 2 | 1 1 . . Mechanic 1 | . 1 . . Watcher 3 | . 3 . . Swarmer 7 | . 5 2 . Grunt 8 | . 3 4 1 Subdweller 2 | . . . 2 Assembled 2 | . . 2 . Best Kill Streak 8 | 3 8 2 1 Combat Bots Only 6 | . 6 2 1 Max Kills in Single Turn 1 | 1 1 1 1 Gunslinging . | . . . . Exploded . | . . . . Melee . | . . . . Uniques/NPCs Destroyed . | . . . . Combat | -11 -10 -10 -10 -------- Run | Yrd Mat Min Sub Hostile Shots Fired 190 | . 21 150 19 Missed 56 | . 4 44 8 Hits 134 | . 17 106 11 Melee 14 | . . 14 . Projectile 120 | . 17 92 11 Critical Strikes 1 | . . 1 . Part Disruptions 1 | . . 1 . Damage Taken 1266 | . 136 983 147 Core 251 | . 8 204 39 Absorbed by Shields . | . . . . Redirected to Shielding 46 | . 1 37 8 Ignored by Resistances 757 | . 89 601 67 Core Remaining (%) 100 | 100 . . . Volleys Fired 158 | 20 42 46 50 Largest 2 | 2 2 2 2 Hottest 165 | 40 40 85 165 Shots Fired 299 | 40 84 77 98 Gun 259 | 40 84 77 58 Cannon . | . . . . Launcher . | . . . . Special 40 | . . . 40 Kinetic 182 | 40 84 52 6 Thermal 117 | . . 25 92 Explosive . | . . . . Electromagnetic . | . . . . Robot Hit Streak 33 | 29 33 31 23 Robot Miss Streak 2 | 1 2 2 . Penetration Max . | . . . . Secondary Targets 1 | . 1 . . Max Gunslinging Chain 1 | . 1 . . Shots Hit Robots 180 | 36 65 58 21 Core Hits 75 | 11 31 24 9 Critical Kills . | . . . . Critical Parts Destroyed . | . . . . Critical Strikes 1 | . . . 1 Burn 1 | . . . 1 Melee Attacks . | . . . . Impact . | . . . . Slashing . | . . . . Piercing . | . . . . Sneak Attacks . | . . . . Combat Hostiles . | . . . . Follow-up Attacks . | . . . . Damage Inflicted 1659 | 276 523 571 289 Guns 1635 | 276 523 571 265 Cannons . | . . . . Explosions . | . . . . Melee . | . . . . Ramming . | . . . . Kinetic 1214 | 276 523 365 50 Thermal 445 | . . 206 239 Explosive . | . . . . Electromagnetic . | . . . . Impact . | . . . . Slashing . | . . . . Piercing . | . . . . Highest Corruption 1 | . 1 1 1 Average Corruption 1 | . 1 1 1 Corruption Purged . | . . . . Corruption Blocked . | . . . . Effects 11 | . 1 5 5 Message Errors 3 | . 1 1 1 Heat Flow Errors 2 | . . 2 . Energy Discharges 4 | . . 1 3 Data Loss (minor) 2 | . . 1 1 Overload Shots . | . . . . Overflow Damage . | . . . . Projectiles . | . . . . Explosions . | . . . . Melee . | . . . . Knockbacks . | . . . . Impact . | . . . . Kinetic . | . . . . Secondary . | . . . . Self-Inflicted Damage . | . . . . Shots . | . . . . Rammed . | . . . . Targets Rammed . | . . . . Kicked . | . . . . Crushed . | . . . . Highest Temperature 269 | . 136 269 28 Average Temperature 61 | . 49 77 13 Received Heat Transfer 360 | . 72 213 75 Siege Activations . | . . . . Martial Activations . | . . . . Shielding Activations . | . . . . Robots Disrupted . | . . . . Combat Hostiles . | . . . . Robots Corrupted . | . . . . Combat Hostiles . | . . . . Parts Fried . | . . . . Impact Corruptions . | . . . . Robots Melted . | . . . . Combat Hostiles . | . . . . Parts Melted 1 | . . 1 . Heat Transferred 1103 | . . 461 642 Parts Sabotaged . | . . . . Parts Stolen . | . . . . Parts Stripped . | . . . . Power Chain Reactions . | . . . . Alert | -11 -10 -10 -10 ------- Run | Yrd Mat Min Sub Maximum Alert Level . | . . . . Low Security (%) 100 | 100 100 100 . Level 1 . | . . . . Level 2 . | . . . . Level 3 . | . . . . Level 4 . | . . . . Level 5 . | . . . . High Security . | . . . . Max Security . | . . . . Peak Influence 130 | 10 130 51 . Initial 4 | . 4 . . Average 12 | 2 18 6 . Influence Increases 615 | 25 281 258 51 Destroy 0b10 Robot/C 340 | . 160 140 40 Destroy 0b10 Robot/NC 65 | 25 40 . . Destroy Leader 88 | . 38 40 10 Allied During Kill 4 | . . 3 1 Successful Hack 28 | . 28 . . Lose Combat Pursuer 90 | . 15 75 . Influence Decreases 615 | 15 291 258 51 Entered New Map 6 | . 6 . . Time Decay 599 | 15 285 248 51 Lost Part 10 | . . 10 . Squads Dispatched 1 | . 1 . . Investigation 1 | . 1 . . Extermination . | . . . . Reinforcement . | . . . . Assault . | . . . . Garrison . | . . . . Intercept . | . . . . Searches Triggered . | . . . . Construction Impeded . | . . . . Haulers Reinforced . | . . . . Active Scanning Responses . | . . . . Cargo Convoy Interrupts . | . . . . Stealth | -11 -10 -10 -10 --------- Run | Yrd Mat Min Sub Distress Signals . | . . . . Communications Jammed . | . . . . Distress Signals . | . . . . Times Spotted 51 | . 11 35 5 Peak Tracking Total 20 | . 3 20 2 Tactical Retreats 7 | . 1 6 . Traps | -11 -10 -10 -10 ------- Run | Yrd Mat Min Sub Traps Triggered 5 | . 4 . 1 Indirectly . | . . . . Trap Hack Attempts . | . . . . Triggered . | . . . . Disarmed . | . . . . Reprogrammed . | . . . . Reused . | . . . . Traps Extracted . | . . . . Installed . | . . . . Triggered . | . . . . Machines | -11 -10 -10 -10 ---------- Run | Yrd Mat Min Sub Machines Disabled . | . . . . Max in Single Turn . | . . . . Machines Repaired . | . . . . Machines Dismantled . | . . . . Machines Sabotaged . | . . . . Overloaded Fab Kills . | . . . . Hacking | -11 -10 -10 -10 --------- Run | Yrd Mat Min Sub Machines Accessed 8 | . 8 . . Terminals 8 | . 8 . . Fabricators . | . . . . Repair Stations . | . . . . Recycling Units . | . . . . Scanalyzers . | . . . . Garrison Access . | . . . . Total Hacks 41 | . 41 . . Successful 33 | . 33 . . Failed 8 | . 8 . . Catastrophic . | . . . . Database Lockouts . | . . . . Manual 38 | . 38 . . Terminals 41 | . 41 . . Fabricators . | . . . . Repair Stations . | . . . . Recycling Units . | . . . . Scanalyzers . | . . . . Garrison Access . | . . . . Terminal Hacks 25 | . 25 . . Robot Analysis 3 | . 3 . . Prototype ID Bank 22 | . 22 . . Fabricator Hacks . | . . . . Repair Station Hacks . | . . . . Recycling Unit Hacks . | . . . . Scanalyzer . | . . . . Garrison Access Hacks . | . . . . Unauthorized Hacks 8 | . 8 . . Terminals 8 | . 8 . . Botnet 8 | . 8 . . Fabricators . | . . . . Repair Stations . | . . . . Recycling Units . | . . . . Scanalyzers . | . . . . Garrison Access . | . . . . Data Cores Recovered . | . . . . Used . | . . . . Hacking Detections 8 | . 8 . . Full Trace Events 2 | . 2 . . Feedback Events . | . . . . Feedback Blocked . | . . . . Robot Schematics Acquired . | . . . . Robots Built . | . . . . Authchips . | . . . . Time . | . . . . Total Robot Build Rating . | . . . . Part Schematics Acquired . | . . . . Parts Built . | . . . . Authchips . | . . . . Time . | . . . . Total Part Build Rating . | . . . . Part Studies Acquired . | . . . . Parts Repaired . | . . . . Time . | . . . . Parts Recycled . | . . . . Recycled Matter . | . . . . Retrieved Matter . | . . . . Retrieved Components . | . . . . Parts Scanalyzed . | . . . . Part Schematics Acquired . | . . . . Parts Damaged . | . . . . Bothacking | -11 -10 -10 -10 ------------ Run | Yrd Mat Min Sub Used RIF Installer . | . . . . Robots Hacked . | . . . . Non-combat . | . . . . Combat . | . . . . Robot Hacks Applied . | . . . . Relay Couplers Released . | . . . . Fabnet Peak Effective % . | . . . . Robots Rewired . | . . . . Allies Hacked . | . . . . Hacks Repelled . | . . . . Allies | -11 -10 -10 -10 -------- Run | Yrd Mat Min Sub Total Allies 2 | . . 2 . Largest Group 2 | . . 2 2 Highest-Rated Group 53 | . . 53 53 Highest-Rated Ally 31 | . . 31 31 Total Orders . | . . . . Ally Attacks 19 | . . 6 13 Total Damage 296 | . . 105 191 Kills 3 | . . 1 2 Allies Corrupted . | . . . . Allies Melted . | . . . . Intel | -11 -10 -10 -10 ------- Run | Yrd Mat Min Sub Active Infowar (turns) 633 | . . . 633 Sensors 633 | . . . 633 Robot Analysis Total 3 | . 3 . . Derelict Logs Recovered 1 | . . 1 . Drone Launches . | . . . . Drone Recoveries . | . . . . Exploration | -11 -10 -10 -10 ------------- Run | Yrd Mat Min Sub Turns Passed 2641 | 96 994 874 677 Spaces Moved 2021 | 61 538 882 540 Core 387 | 61 4 322 . Treads 548 | . 534 14 . Legs . | . . . . Wheels 1086 | . . 546 540 Hover . | . . . . Flight . | . . . . Fastest Speed 50 | 50 50 50 80 Average Speed 96 | 50 159 70 80 Slowest Speed 160 | 50 160 160 80 Overloaded Moves . | . . . . Propulsion Burnouts . | . . . . Robots Hopped . | . . . . Potential Cave-ins . | . . . . Cave-ins Triggered . | . . . . Exploration Rate (%) 55 | 4 82 99 36 Regions Visited 3 Branch Regions 2 Pre-discovered Areas . | . . . . Known Exits Taken 3 | 1 1 1 . Unknown Exits Taken . | . . . . Scrap Searched 2 | . . . 2 Spaces Dug 2 | . . . 2 Terrain Destroyed 2 | . . . 2 Melee . | . . . . Projectile 2 | . . . 2 AOE . | . . . . Terrain Rammed . | . . . . Walls Destroyed . | . . . . Machines Disabled . | . . . . Actions | -11 -10 -10 -10 --------- Run | Yrd Mat Min Sub Total 2376 | 93 611 1065 607 Wait 154 | 4 13 129 8 Move 2018 | 60 537 881 540 Hop . | . . . . Pick Up 13 | 6 5 . 2 Fast Attach 14 | 2 5 5 2 Attach 3 | . 2 . 1 Detach . | . . . . Swap 6 | . 2 2 2 Drop 10 | 1 5 2 2 Fire 158 | 20 42 46 50 Melee . | . . . . Ram . | . . . . Kick . | . . . . Crush . | . . . . Escape Stasis . | . . . . Rewire . | . . . . Trap . | . . . . Miscellaneous . | . . . . Route ------- -11/Scrapyard -10/Materials (discovered 4 exits: *Mat x2 / *Min / *Sub) -10/Mines (discovered 3 exits: *Mat x2 / *Sub) -10/Subcaves (discovered 2 exits: *Mat / [*Scr]) History --------- Turn | Location | Event 6 | -11/Scrapyard | Identified exit to Materials 6 | -11/Scrapyard | Discovered exit to Materials (range 16) 97 | -11/Scrapyard | Entered Materials 97 | -10/Materials | Evolved 1 slot: Utility x1 308 | -10/Materials | Build established: Hacker-Mutant 498 | -10/Materials | Identified exit to Subcaves 498 | -10/Materials | Discovered exit to Subcaves (range 10) 509 | -10/Materials | Identified exit to Materials 509 | -10/Materials | Discovered exit to Materials (range 8) 835 | -10/Materials | Identified exit to Mines 835 | -10/Materials | Discovered exit to Mines (range 10) 907 | -10/Materials | Discovered exit to Materials (range 14) 1091 | -10/Materials | Entered Mines 1092 | -10/Mines | Assembled infested the area 1163 | -10/Mines | Lost 5 parts (1p2n1u1w) 1197 | -10/Mines | Discovered exit to Materials (range 5) 1226 | -10/Mines | Discovered exit to Subcaves (range 9) 1319 | -10/Mines | Core integrity fell below 50% 1869 | -10/Mines | Core integrity fell below 20% 1965 | -10/Mines | Entered Subcaves 1965 | -10/Subcaves | Accompanied by 2 allies 1966 | -10/Subcaves | Approached by a straggling Scientist 1970 | -10/Subcaves | Led the pair of lost Derelicts to an unsafe place 2022 | -10/Subcaves | A swath of the cavern ceiling suddenly collapsed 2292 | -10/Subcaves | Build established: Scavenger-Mutant 2431 | -10/Subcaves | Identified exit to Materials 2431 | -10/Subcaves | Discovered exit to Materials (range 8) 2434 | -10/Subcaves | Disturbed a concealed Subdweller 2642 | -10/Subcaves | Destroyed by Piercing Trap Last Messages --------------- 02464_ Searching scrap... 02464_ Found Mak. System Restoration Module. 02464_ Found Sub. Monowheel. 02464_ Found 45 Matter. 02465_ Dropped Sub. Optics. 02466_ Acquired Mak. System Restoration Module. 02469_ Searching scrap... 02469_ Found Sub. Laser. 02469_ Found 69 Matter. 02477_ Subatomizers dissect the Disposable Heat Sink. 02534_ System corrupted: Energy discharge (-36). 02613_ 5A-8BY(R) destroyed. 02616_ 8N-XM4(R) suffers critical hit (Burn). 02619_ 8N-XM4(R) destroyed. 02624_ Acquired 10 matter. 02642_ Triggered Piercing Trap. 02642_ Spikes shoot up from the floor. 02642_ Critical hit (Impale). Map ----- +----------------------------------------------------+ | | | ?????????????????????????????????????????????????? | | ?????????????????????????????????????????????????? | | ?????????????????????????????????????????????????? | | ?????????????????????????????????????????????????? | | ?????????????????????????????????????????????????? | | ?????????????????????????????????????????????????? | | ?????????????????????????????????????????????????? | | ?????????????????????????????????????????????????? | | ?????????????????????????????????????????????????? | | ?????????????????????????????????????????????????? | | ?????????????????????????????????????????????????? | | ?????????????????????????????????????????????????? | | ?????????????????????????????????????????????????? | | ?????????????????????????????????????????????????? | | ?????????????????????????????????????????????????? | | ????????????????######???????????????????????????? | | ????????????????# ##???###????????????????????? | | #???????????????## ##?? ##???????????????????? | | ######???????????# ## #???????????????????? | | ##?????????## #???????????????????? | | ########### ##??????????????????? | | # ## # # &## # ## ###????????????????? | | ## =%[ & ### #????????????????? | | ?# !z %[ g #?????????????????? | | # ### ## ### @ ##???????????????????? | | ####?##### #?## ## #????????????????????? | | #????????## #??####### #????????????????????? | | #?????????###?????????##????????????????????? | | ##???????????????????????????????????????????? | | ##????????????????????????????????????????????? | | ##?????????????????????????????????????????????? | | #??????????????????????????????????????????????? | | #??????????????????????????????????????????????? | | ##?????????????????????????????????????????????? | | #?????????????????????????????????????????????? | | #?????????????????????????????????????????????? | | # ###??????????????????????????????????????????? | | ? #??????????????????????????????????????????? | | # #??????????????????????????????????????????? | | ##??????????????????????????????????????????? | | ##???????????????????????????????????????????? | | #????????????????????????????????????????????? | | #####????????????????????????????????????????????? | | ?????????????????????????????????????????????????? | | ?????????????????????????????????????????????????? | | ?????????????????????????????????????????????????? | | ?????????????????????????????????????????????????? | | ?????????????????????????????????????????????????? | | ?????????????????????????????????????????????????? | +----------------------------------------------------+ Best States ------------- Heat Dissipation 39 Energy Generation 14 Energy Capacity 250 Matter Stores 300 Matter Capacity 300 Sight Range 16 Robot Scan Range 14 Terrain Scan Density 10 Armor Coverage 675 Resistance: KI 35 Resistance: TH 35 Resistance: EX 35 Resistance: EM 35 Resistance: I 35 Resistance: S 35 Resistance: P 35 Core Shielding 20 Evasion (%) 50 Recoil Reduction 2 Offensive Hacking 20 Item Schematics ----------------- None Robot Schematics ------------------ None Fabricated ------------ Nothing Repaired ---------- Nothing Studied --------- None Alien Tech Used ----------------- None Achievements -------------- None Challenges ------------ None Game ------ Seed NavigationThermicNetwork Manual? 0 Play Time 00:14:54 Cumulative 220.7 hours Start 2025.12.22 @ 16:07:49 End 2025.12.22 @ 16:40:41 Sessions 1 Manual Loads 0 Difficulty Explorer Special Mode None Game No. 335 Rogue 0 Adventurer 0 Explorer 335 Win Type - Total 0 Types 0/0/0/0/0/0/0/0/0/0 Lore% 71 Gallery% 68 Achievement% 53 Wizard Run 0 Options --------- Layout 1 ASCII 0 Keyboard 0 Movement Mouse Keybinds 0 Fullscreen 1 Font 24/Smallcaps Map View 50x35 Zoom Use 0% Tactical HUD 1 Map Filters NONE Filters NONE Steam 1 RUN: 604a8650-2cc4-4e67-9c04-cfd0ae1e130c